[Event "Titled Tuesday Blitz April 4 Early 2023"]
[White "Harriott, Tyrell"]
[Black "Rohith Krishna S"]
[WhiteFideId "2086484"]
[BlackFideId "46617051"]
[WhiteElo "2107"]
[BlackElo "2270"]
[Result "1-0"]
[Round "01"]
[TimeControl "180+2"]
[Date "2023.04.04"]
[WhiteClock "0:00:08"]
[BlackClock "0:00:03"]

1. d4 {[%clk 0:02:57]}  Nf6 {[%clk 0:02:57]} 2. e3 {[%clk 0:02:58]}  c5 {[%clk 0:02:56]} 3. c3 {[%clk 0:02:57]}  e6 {[%clk 0:02:55]} 4. Bd3 {[%clk 0:02:57]}  b6 {[%clk 0:02:54]} 5. f4 {[%clk 0:02:57]}  Bb7 {[%clk 0:02:53]} 6. Nf3 {[%clk 0:02:57]}  Be7 {[%clk 0:02:48]} 7. Nbd2 {[%clk 0:02:57]}  O-O {[%clk 0:02:48]} 8. O-O {[%clk 0:02:57]}  d5 {[%clk 0:02:48]} 9. Ne5 {[%clk 0:02:56]}  Nbd7 {[%clk 0:02:40]} 10. Qf3 {[%clk 0:02:56]}  Re8 {[%clk 0:02:31]} 11. g4 {[%clk 0:02:53]}  Nf8 {[%clk 0:02:32]} 12. g5 {[%clk 0:02:53]}  N6d7 {[%clk 0:02:32]} 13. Qh5 {[%clk 0:02:52]}  Nxe5 {[%clk 0:02:29]} 14. dxe5 {[%clk 0:02:49]}  d4 {[%clk 0:02:28]} 15. cxd4 {[%clk 0:02:40]}  cxd4 {[%clk 0:02:27]} 16. e4 {[%clk 0:02:40]}  g6 {[%clk 0:02:14]} 17. Qe2 {[%clk 0:02:31]}  a6 {[%clk 0:02:10]} 18. a3 {[%clk 0:02:19]}  b5 {[%clk 0:02:08]} 19. b4 {[%clk 0:02:14]}  Qb6 {[%clk 0:01:56]} 20. Nb3 {[%clk 0:02:13]}  Rac8 {[%clk 0:01:52]} 21. Bb2 {[%clk 0:02:10]}  Red8 {[%clk 0:01:44]} 22. Rac1 {[%clk 0:02:05]}  Rb8 {[%clk 0:01:34]} 23. Qf2 {[%clk 0:01:56]}  Rd7 {[%clk 0:01:29]} 24. Bxd4 {[%clk 0:01:31]}  Rxd4 {[%clk 0:01:28]} 25. Qxd4 {[%clk 0:01:26]}  Qxd4+ {[%clk 0:01:27]} 26. Nxd4 {[%clk 0:01:27]}  Rd8 {[%clk 0:01:28]} 27. Rc7 {[%clk 0:01:17]}  Rxd4 {[%clk 0:01:27]} 28. Rxb7 {[%clk 0:01:12]}  Nd7 {[%clk 0:01:04]} 29. Bb1 {[%clk 0:01:04]}  Bd8 {[%clk 0:00:58]} 30. Rc1 {[%clk 0:01:00]}  Bb6 {[%clk 0:00:53]} 31. Kf1 {[%clk 0:00:45]}  Rd2 {[%clk 0:00:52]} 32. Rc2 {[%clk 0:00:44]}  Rd1+ {[%clk 0:00:22]} 33. Ke2 {[%clk 0:00:44]}  Rxb1 {[%clk 0:00:23]} 34. Rxd7 {[%clk 0:00:43]}  Rb3 {[%clk 0:00:23]} 35. Rd3 {[%clk 0:00:42]}  Rb1 {[%clk 0:00:22]} 36. Rd6 {[%clk 0:00:39]}  Bg1 {[%clk 0:00:20]} 37. Kf3 {[%clk 0:00:35]}  Rb3+ {[%clk 0:00:19]} 38. Kg2 {[%clk 0:00:35]}  Be3 {[%clk 0:00:19]} 39. Rxa6 {[%clk 0:00:34]}  Bxf4 {[%clk 0:00:19]} 40. h4 {[%clk 0:00:30]}  Bxe5 {[%clk 0:00:18]} 41. Ra8+ {[%clk 0:00:29]}  Kg7 {[%clk 0:00:18]} 42. Rcc8 {[%clk 0:00:28]}  h5 {[%clk 0:00:18]} 43. Rg8+ {[%clk 0:00:24]}  Kh7 {[%clk 0:00:19]} 44. Rgf8 {[%clk 0:00:24]}  Kg7 {[%clk 0:00:19]} 45. Rfc8 {[%clk 0:00:23]}  Re3 {[%clk 0:00:19]} 46. Rc5 {[%clk 0:00:17]}  Bd4 {[%clk 0:00:18]} 47. Rxb5 {[%clk 0:00:16]}  Rxe4 {[%clk 0:00:18]} 48. Kf3 {[%clk 0:00:17]}  Rxh4 {[%clk 0:00:18]} 49. Rb7 {[%clk 0:00:16]}  e5 {[%clk 0:00:15]} 50. Rbb8 {[%clk 0:00:14]}  Rf4+ {[%clk 0:00:13]} 51. Ke2 {[%clk 0:00:14]}  e4 {[%clk 0:00:13]} 52. b5 {[%clk 0:00:14]}  h4 {[%clk 0:00:11]} 53. b6 {[%clk 0:00:13]}  h3 {[%clk 0:00:11]} 54. Rh8 {[%clk 0:00:12]}  f5 {[%clk 0:00:06]} 55. gxf6+ {[%clk 0:00:09]}  Rxf6 {[%clk 0:00:06]} 56. Rxh3 {[%clk 0:00:10]}  Rxb6 {[%clk 0:00:05]} 57. a4 {[%clk 0:00:09]}  Rb2+ {[%clk 0:00:06]} 58. Kd1 {[%clk 0:00:09]}  Rb1+ {[%clk 0:00:06]} 59. Kc2 {[%clk 0:00:09]}  Rb2+ {[%clk 0:00:07]} 60. Kc1 {[%clk 0:00:10]}  Ra2 {[%clk 0:00:08]} 61. Rb3 {[%clk 0:00:09]}  Kf6 {[%clk 0:00:08]} 62. Rb4 {[%clk 0:00:09]}  Be3+ {[%clk 0:00:07]} 63. Kb1 {[%clk 0:00:08]}  Re2 {[%clk 0:00:07]} 64. Rxe4 {[%clk 0:00:08]}  Kf5 {[%clk 0:00:07]} 65. Ree8 {[%clk 0:00:08]}  Re1+ {[%clk 0:00:07]} 66. Kc2 {[%clk 0:00:08]}  g5 {[%clk 0:00:07]} 67. Kd3 {[%clk 0:00:08]}  Kf4 {[%clk 0:00:07]} 68. Rf8+ {[%clk 0:00:08]}  Kg3 {[%clk 0:00:07]} 69. Rae8 {[%clk 0:00:08]}  Bf2 {[%clk 0:00:06]} 70. Rxe1 {[%clk 0:00:07]}  Bxe1 {[%clk 0:00:07]} 71. Rf7 {[%clk 0:00:08]}  g4 {[%clk 0:00:06]} 72. Ke2 {[%clk 0:00:08]}  Bb4 {[%clk 0:00:06]} 73. Rg7 {[%clk 0:00:07]}  Kh3 {[%clk 0:00:06]} 74. Rg5 {[%clk 0:00:08]}  g3 {[%clk 0:00:05]} 75. Kf3 {[%clk 0:00:07]}  Be1 {[%clk 0:00:03]} 76. Rh5# {[%clk 0:00:08]} 1-0


[Site "https://www.chess.com"]

[Event "Titled Tuesday Blitz April 4 Early 2023"]
[White "Salimova, Nurgyul"]
[Black "Lach, Aleksandra"]
[WhiteFideId "2915138"]
[BlackFideId "1134299"]
[WhiteElo "2314"]
[BlackElo "2111"]
[Result "1/2-1/2"]
[Round "01"]
[TimeControl "180+2"]
[Date "2023.04.04"]
[WhiteClock "0:00:03"]
[BlackClock "0:00:19"]

1. d4 {[%clk 0:02:58]}  f5 {[%clk 0:02:56]} 2. Nc3 {[%clk 0:02:57]}  Nf6 {[%clk 0:02:55]} 3. Bg5 {[%clk 0:02:57]}  d5 {[%clk 0:02:56]} 4. Bxf6 {[%clk 0:02:55]}  exf6 {[%clk 0:02:57]} 5. e3 {[%clk 0:02:55]}  Be6 {[%clk 0:02:55]} 6. h4 {[%clk 0:02:52]}  Nc6 {[%clk 0:02:51]} 7. Nh3 {[%clk 0:02:51]}  Bd6 {[%clk 0:02:35]} 8. Nf4 {[%clk 0:02:50]}  Bxf4 {[%clk 0:02:35]} 9. exf4 {[%clk 0:02:51]}  Qd6 {[%clk 0:02:34]} 10. Qd2 {[%clk 0:02:49]}  O-O-O {[%clk 0:02:34]} 11. O-O-O {[%clk 0:02:47]}  a6 {[%clk 0:02:34]} 12. g3 {[%clk 0:02:46]}  Rhe8 {[%clk 0:02:33]} 13. Bh3 {[%clk 0:02:44]}  g6 {[%clk 0:02:27]} 14. Rhe1 {[%clk 0:02:44]}  Kb8 {[%clk 0:02:26]} 15. Re3 {[%clk 0:02:41]}  Na5 {[%clk 0:02:24]} 16. Bf1 {[%clk 0:02:35]}  Nc6 {[%clk 0:02:12]} 17. Rde1 {[%clk 0:02:33]}  Bd7 {[%clk 0:02:11]} 18. Bg2 {[%clk 0:02:30]}  Be6 {[%clk 0:02:00]} 19. Bxd5 {[%clk 0:02:26]}  Bd7 {[%clk 0:01:50]} 20. Bxc6 {[%clk 0:02:20]}  Bxc6 {[%clk 0:01:48]} 21. Rxe8 {[%clk 0:02:16]}  Bxe8 {[%clk 0:01:44]} 22. d5 {[%clk 0:01:59]}  Bf7 {[%clk 0:01:44]} 23. Rd1 {[%clk 0:01:56]}  Qc5 {[%clk 0:01:44]} 24. a3 {[%clk 0:01:38]}  Kc8 {[%clk 0:01:40]} 25. h5 {[%clk 0:01:31]}  gxh5 {[%clk 0:01:39]} 26. Qd3 {[%clk 0:01:22]}  Bg6 {[%clk 0:01:35]} 27. Qf3 {[%clk 0:01:09]}  Kb8 {[%clk 0:01:33]} 28. b4 {[%clk 0:01:01]}  Qd6 {[%clk 0:01:27]} 29. Re1 {[%clk 0:00:54]}  Bf7 {[%clk 0:01:25]} 30. Rd1 {[%clk 0:00:51]}  a5 {[%clk 0:01:25]} 31. Nb5 {[%clk 0:00:47]}  Qb6 {[%clk 0:01:25]} 32. c4 {[%clk 0:00:44]}  Be8 {[%clk 0:01:11]} 33. Qe3 {[%clk 0:00:29]}  Qxe3+ {[%clk 0:01:00]} 34. fxe3 {[%clk 0:00:30]}  Bxb5 {[%clk 0:00:59]} 35. cxb5 {[%clk 0:00:31]}  axb4 {[%clk 0:00:59]} 36. axb4 {[%clk 0:00:31]}  Ka7 {[%clk 0:01:00]} 37. Kc2 {[%clk 0:00:23]}  Kb6 {[%clk 0:01:00]} 38. Kc3 {[%clk 0:00:14]}  Kxb5 {[%clk 0:01:01]} 39. Rh1 {[%clk 0:00:15]}  Rxd5 {[%clk 0:00:59]} 40. Rxh5 {[%clk 0:00:15]}  c6 {[%clk 0:00:58]} 41. Rxh7 {[%clk 0:00:15]}  b6 {[%clk 0:00:58]} 42. Rf7 {[%clk 0:00:15]}  c5 {[%clk 0:00:58]} 43. bxc5 {[%clk 0:00:13]}  Rxc5+ {[%clk 0:00:59]} 44. Kb3 {[%clk 0:00:09]}  Rd5 {[%clk 0:00:59]} 45. Rxf6 {[%clk 0:00:09]}  Rd3+ {[%clk 0:00:59]} 46. Kc2 {[%clk 0:00:09]}  Rxe3 {[%clk 0:00:59]} 47. Rxf5+ {[%clk 0:00:10]}  Kc4 {[%clk 0:01:00]} 48. g4 {[%clk 0:00:08]}  Re2+ {[%clk 0:01:00]} 49. Kd1 {[%clk 0:00:08]}  Rg2 {[%clk 0:01:01]} 50. g5 {[%clk 0:00:09]}  b5 {[%clk 0:01:01]} 51. Rf8 {[%clk 0:00:06]}  b4 {[%clk 0:01:01]} 52. Rc8+ {[%clk 0:00:05]}  Kd3 {[%clk 0:01:02]} 53. Rd8+ {[%clk 0:00:05]}  Kc3 {[%clk 0:01:02]} 54. Rc8+ {[%clk 0:00:04]}  Kd3 {[%clk 0:01:02]} 55. Rd8+ {[%clk 0:00:03]}  Kc3 {[%clk 0:01:03]} 56. Rc8+ {[%clk 0:00:03]}  Kd3 {[%clk 0:00:19]} 1/2-1/2


[Site "https://www.chess.com"]

[Event "Titled Tuesday Blitz April 4 Early 2023"]
[White "Chernomordik, Pavel"]
[Black "Nazari, Arad"]
[WhiteFideId "2804530"]
[BlackFideId "12577324"]
[WhiteElo "2193"]
[BlackElo "2242"]
[Result "1-0"]
[Round "01"]
[TimeControl "180+2"]
[Date "2023.04.04"]
[WhiteClock "0:00:22"]
[BlackClock "0:00:06"]

1. e4 {[%clk 0:03:00]}  c5 {[%clk 0:02:57]} 2. Nc3 {[%clk 0:03:00]}  d6 {[%clk 0:02:57]} 3. f4 {[%clk 0:03:00]}  g6 {[%clk 0:02:56]} 4. Nf3 {[%clk 0:03:00]}  Bg7 {[%clk 0:02:56]} 5. Bb5+ {[%clk 0:03:00]}  Bd7 {[%clk 0:02:54]} 6. Bxd7+ {[%clk 0:03:00]}  Qxd7 {[%clk 0:02:53]} 7. O-O {[%clk 0:03:00]}  e6 {[%clk 0:02:42]} 8. f5 {[%clk 0:02:58]}  Ne7 {[%clk 0:02:28]} 9. fxe6 {[%clk 0:02:56]}  fxe6 {[%clk 0:02:22]} 10. Ng5 {[%clk 0:02:53]}  h6 {[%clk 0:02:20]} 11. Nf3 {[%clk 0:02:39]}  O-O {[%clk 0:02:18]} 12. d3 {[%clk 0:02:34]}  Nbc6 {[%clk 0:02:13]} 13. Be3 {[%clk 0:02:29]}  Kh7 {[%clk 0:02:01]} 14. Ne2 {[%clk 0:02:26]}  Bxb2 {[%clk 0:01:54]} 15. Rb1 {[%clk 0:02:15]}  Bg7 {[%clk 0:01:54]} 16. Qe1 {[%clk 0:02:13]}  g5 {[%clk 0:01:45]} 17. Bxg5 {[%clk 0:02:08]}  Rxf3 {[%clk 0:01:42]} 18. Rxf3 {[%clk 0:02:04]}  hxg5 {[%clk 0:01:42]} 19. Rh3+ {[%clk 0:02:04]}  Kg6 {[%clk 0:01:31]} 20. Qg3 {[%clk 0:01:47]}  e5 {[%clk 0:01:27]} 21. Qf3 {[%clk 0:01:38]}  Rh8 {[%clk 0:01:13]} 22. Rxh8 {[%clk 0:01:23]}  Bxh8 {[%clk 0:01:14]} 23. Rf1 {[%clk 0:01:18]}  Qe6 {[%clk 0:00:53]} 24. Ng3 {[%clk 0:01:06]}  g4 {[%clk 0:00:29]} 25. Qf8 {[%clk 0:01:05]}  Bf6 {[%clk 0:00:20]} 26. Qe8+ {[%clk 0:00:55]}  Qf7 {[%clk 0:00:21]} 27. Qd7 {[%clk 0:00:54]}  Nd4 {[%clk 0:00:18]} 28. Qxg4+ {[%clk 0:00:50]}  Kh6 {[%clk 0:00:14]} 29. Qd7 {[%clk 0:00:39]}  Qg6 {[%clk 0:00:14]} 30. Qxd6 {[%clk 0:00:36]}  Bh4 {[%clk 0:00:14]} 31. Qxe5 {[%clk 0:00:28]}  Bxg3 {[%clk 0:00:14]} 32. hxg3 {[%clk 0:00:25]}  Nec6 {[%clk 0:00:09]} 33. Qh8+ {[%clk 0:00:23]}  Qh7 {[%clk 0:00:06]} 34. Rf6+ {[%clk 0:00:22]} 1-0


[Site "https://www.chess.com"]

[Event "Titled Tuesday Blitz April 4 Early 2023"]
[White "Csonka, Balazs"]
[Black "Bas Mas, Jose Joaquin"]
[WhiteFideId "742910"]
[BlackFideId "22219064"]
[WhiteElo "2404"]
[BlackElo "2233"]
[Result "1/2-1/2"]
[Round "01"]
[TimeControl "180+2"]
[Date "2023.04.04"]
[WhiteClock "0:00:01"]
[BlackClock "0:00:10"]

1. d4 {[%clk 0:03:00]}  d5 {[%clk 0:02:58]} 2. Bf4 {[%clk 0:02:59]}  Nf6 {[%clk 0:02:57]} 3. e3 {[%clk 0:02:58]}  c5 {[%clk 0:02:55]} 4. Nf3 {[%clk 0:02:54]}  Nc6 {[%clk 0:02:55]} 5. Nbd2 {[%clk 0:02:53]}  Bf5 {[%clk 0:02:48]} 6. dxc5 {[%clk 0:02:49]}  e6 {[%clk 0:02:48]} 7. Nd4 {[%clk 0:02:46]}  Bxc5 {[%clk 0:02:44]} 8. Nxf5 {[%clk 0:02:46]}  exf5 {[%clk 0:02:45]} 9. Bd3 {[%clk 0:02:45]}  g6 {[%clk 0:02:41]} 10. O-O {[%clk 0:02:44]}  O-O {[%clk 0:02:40]} 11. c3 {[%clk 0:02:37]}  Re8 {[%clk 0:02:31]} 12. Bg5 {[%clk 0:02:23]}  Be7 {[%clk 0:02:28]} 13. Qb3 {[%clk 0:02:06]}  Qb6 {[%clk 0:02:25]} 14. Qxb6 {[%clk 0:01:43]}  axb6 {[%clk 0:02:25]} 15. Bxf6 {[%clk 0:01:43]}  Bxf6 {[%clk 0:02:25]} 16. Rfd1 {[%clk 0:01:44]}  h5 {[%clk 0:02:12]} 17. Bb5 {[%clk 0:01:35]}  Kg7 {[%clk 0:02:08]} 18. Nf3 {[%clk 0:01:29]}  Red8 {[%clk 0:01:58]} 19. Rd2 {[%clk 0:01:26]}  h4 {[%clk 0:01:57]} 20. h3 {[%clk 0:01:23]}  Ra5 {[%clk 0:01:49]} 21. Be2 {[%clk 0:01:14]}  b5 {[%clk 0:01:37]} 22. Nd4 {[%clk 0:00:30]}  Bxd4 {[%clk 0:01:25]} 23. cxd4 {[%clk 0:00:28]}  b4 {[%clk 0:01:25]} 24. Bd1 {[%clk 0:00:23]}  Rda8 {[%clk 0:01:16]} 25. Bb3 {[%clk 0:00:22]}  Rb5 {[%clk 0:01:16]} 26. Rc1 {[%clk 0:00:19]}  Na5 {[%clk 0:01:16]} 27. Ba4 {[%clk 0:00:18]}  Rb6 {[%clk 0:01:14]} 28. b3 {[%clk 0:00:16]}  Nc4 {[%clk 0:01:03]} 29. bxc4 {[%clk 0:00:11]}  Rxa4 {[%clk 0:01:04]} 30. cxd5 {[%clk 0:00:12]}  Rd6 {[%clk 0:01:01]} 31. Rc5 {[%clk 0:00:12]}  Kf6 {[%clk 0:00:58]} 32. Rb5 {[%clk 0:00:11]}  b6 {[%clk 0:00:57]} 33. Rb2 {[%clk 0:00:12]}  Ra5 {[%clk 0:00:54]} 34. R5xb4 {[%clk 0:00:07]}  Rdxd5 {[%clk 0:00:52]} 35. Rxb6+ {[%clk 0:00:07]}  Kg5 {[%clk 0:00:53]} 36. Rb7 {[%clk 0:00:05]}  f6 {[%clk 0:00:51]} 37. Rf7 {[%clk 0:00:04]}  Rd6 {[%clk 0:00:44]} 38. Rc7 {[%clk 0:00:04]}  Rda6 {[%clk 0:00:41]} 39. Rcc2 {[%clk 0:00:04]}  f4 {[%clk 0:00:38]} 40. Kf1 {[%clk 0:00:05]}  fxe3 {[%clk 0:00:37]} 41. fxe3 {[%clk 0:00:05]}  f5 {[%clk 0:00:37]} 42. Kf2 {[%clk 0:00:05]}  Ra3 {[%clk 0:00:38]} 43. Re2 {[%clk 0:00:06]}  Re6 {[%clk 0:00:32]} 44. Rbd2 {[%clk 0:00:06]}  Rd6 {[%clk 0:00:27]} 45. e4 {[%clk 0:00:06]}  fxe4 {[%clk 0:00:26]} 46. Rxe4 {[%clk 0:00:07]}  Rda6 {[%clk 0:00:26]} 47. Re5+ {[%clk 0:00:06]}  Kf6 {[%clk 0:00:26]} 48. Ree2 {[%clk 0:00:06]}  g5 {[%clk 0:00:24]} 49. Ke1 {[%clk 0:00:06]}  Rb6 {[%clk 0:00:20]} 50. Kd1 {[%clk 0:00:05]}  Rc3 {[%clk 0:00:15]} 51. Rc2 {[%clk 0:00:04]}  Rd3+ {[%clk 0:00:15]} 52. Red2 {[%clk 0:00:03]}  Rb1+ {[%clk 0:00:12]} 53. Ke2 {[%clk 0:00:03]}  Rg3 {[%clk 0:00:13]} 54. Kf2 {[%clk 0:00:02]}  Ke6 {[%clk 0:00:10]} 55. d5+ {[%clk 0:00:02]}  Kd7 {[%clk 0:00:10]} 56. d6 {[%clk 0:00:03]}  Rb7 {[%clk 0:00:09]} 57. Rc7+ {[%clk 0:00:02]}  Rxc7 {[%clk 0:00:09]} 58. dxc7+ {[%clk 0:00:03]}  Kxc7 {[%clk 0:00:10]} 59. Rd5 {[%clk 0:00:03]}  Kc6 {[%clk 0:00:11]} 60. Rf5 {[%clk 0:00:04]}  Kd6 {[%clk 0:00:11]} 61. a4 {[%clk 0:00:04]}  Ke6 {[%clk 0:00:11]} 62. Rb5 {[%clk 0:00:03]}  Ra3 {[%clk 0:00:10]} 63. a5 {[%clk 0:00:04]}  Kf6 {[%clk 0:00:09]} 64. Rb6+ {[%clk 0:00:04]}  Kf5 {[%clk 0:00:09]} 65. a6 {[%clk 0:00:04]}  Kf4 {[%clk 0:00:08]} 66. Rb4+ {[%clk 0:00:03]}  Kf5 {[%clk 0:00:08]} 67. Rb5+ {[%clk 0:00:03]}  Kf4 {[%clk 0:00:08]} 68. Rb4+ {[%clk 0:00:03]}  Kf5 {[%clk 0:00:09]} 69. Rb5+ {[%clk 0:00:01]}  Kf4 {[%clk 0:00:09]} 70. Rb6 {[%clk 0:00:02]}  Ra2+ {[%clk 0:00:09]} 71. Kg1 {[%clk 0:00:02]}  Kg3 {[%clk 0:00:09]} 72. Rb3+ {[%clk 0:00:02]}  Kf4 {[%clk 0:00:10]} 73. Rb4+ {[%clk 0:00:02]}  Kf5 {[%clk 0:00:09]} 74. Rb6 {[%clk 0:00:02]}  Kf4 {[%clk 0:00:09]} 75. Kh2 {[%clk 0:00:02]}  Kf5 {[%clk 0:00:08]} 76. Rc6 {[%clk 0:00:02]}  Kf4 {[%clk 0:00:08]} 77. Rf6+ {[%clk 0:00:02]}  Ke5 {[%clk 0:00:08]} 78. Rh6 {[%clk 0:00:03]}  Kf5 {[%clk 0:00:08]} 79. Kg1 {[%clk 0:00:02]}  Kf4 {[%clk 0:00:08]} 80. Rf6+ {[%clk 0:00:02]}  Ke5 {[%clk 0:00:08]} 81. Rc6 {[%clk 0:00:02]}  Kf5 {[%clk 0:00:08]} 82. Kf1 {[%clk 0:00:02]}  Kf4 {[%clk 0:00:09]} 83. Rc4+ {[%clk 0:00:02]}  Kf5 {[%clk 0:00:09]} 84. Rc5+ {[%clk 0:00:02]}  Kf4 {[%clk 0:00:09]} 85. Rc4+ {[%clk 0:00:02]}  Kf5 {[%clk 0:00:10]} 86. Rc6 {[%clk 0:00:02]}  Kf4 {[%clk 0:00:10]} 87. Rf6+ {[%clk 0:00:02]}  Ke5 {[%clk 0:00:10]} 88. Rh6 {[%clk 0:00:02]}  Kf5 {[%clk 0:00:11]} 89. Rd6 {[%clk 0:00:01]}  Kf4 {[%clk 0:00:11]} 90. Rd4+ {[%clk 0:00:01]}  Ke5 {[%clk 0:00:11]} 91. Rb4 {[%clk 0:00:01]}  Rxa6 {[%clk 0:00:10]} 92. Rb5+ {[%clk 0:00:01]}  Kf4 {[%clk 0:00:10]} 93. Rb4+ {[%clk 0:00:01]}  Kf5 {[%clk 0:00:10]} 94. Rb5+ {[%clk 0:00:02]}  Kf4 {[%clk 0:00:10]} 95. Rb4+ {[%clk 0:00:01]} 1/2-1/2


[Site "https://www.chess.com"]

[Event "Titled Tuesday Blitz April 4 Early 2023"]
[White "Horvath, Dominik"]
[Black "Devaev, Alexander"]
[WhiteFideId "1642561"]
[BlackFideId "4169395"]
[WhiteElo "2407"]
[BlackElo "2204"]
[Result "1-0"]
[Round "01"]
[TimeControl "180+2"]
[Date "2023.04.04"]
[WhiteClock "0:00:35"]
[BlackClock "0:00:16"]

1. e4 {[%clk 0:02:36]}  c6 {[%clk 0:02:59]} 2. Nf3 {[%clk 0:02:33]}  d5 {[%clk 0:03:00]} 3. d3 {[%clk 0:02:31]}  d4 {[%clk 0:03:00]} 4. g3 {[%clk 0:02:31]}  c5 {[%clk 0:03:01]} 5. Bg2 {[%clk 0:02:32]}  Nc6 {[%clk 0:03:02]} 6. O-O {[%clk 0:02:32]}  e5 {[%clk 0:03:02]} 7. a4 {[%clk 0:02:31]}  h6 {[%clk 0:03:02]} 8. Na3 {[%clk 0:02:31]}  Nf6 {[%clk 0:03:02]} 9. Nc4 {[%clk 0:02:32]}  Qc7 {[%clk 0:03:03]} 10. c3 {[%clk 0:02:24]}  Bg4 {[%clk 0:03:02]} 11. a5 {[%clk 0:02:23]}  g5 {[%clk 0:03:01]} 12. Qa4 {[%clk 0:02:23]}  Bd7 {[%clk 0:02:58]} 13. Qb3 {[%clk 0:02:11]}  Be7 {[%clk 0:02:56]} 14. Bd2 {[%clk 0:02:10]}  Rb8 {[%clk 0:02:45]} 15. Rfc1 {[%clk 0:02:09]}  Be6 {[%clk 0:02:38]} 16. Qa4 {[%clk 0:02:08]}  Nd7 {[%clk 0:02:31]} 17. cxd4 {[%clk 0:02:06]}  cxd4 {[%clk 0:02:32]} 18. b4 {[%clk 0:02:06]}  a6 {[%clk 0:02:32]} 19. Na3 {[%clk 0:01:47]}  Qd8 {[%clk 0:02:22]} 20. b5 {[%clk 0:01:46]}  axb5 {[%clk 0:02:21]} 21. Qxb5 {[%clk 0:01:44]}  Ra8 {[%clk 0:02:13]} 22. Nc4 {[%clk 0:01:36]}  Qc7 {[%clk 0:02:04]} 23. Ncxe5 {[%clk 0:01:24]}  Ndxe5 {[%clk 0:02:01]} 24. Nxe5 {[%clk 0:01:24]}  Qxe5 {[%clk 0:01:59]} 25. Qxb7 {[%clk 0:01:24]}  O-O {[%clk 0:01:52]} 26. Rxc6 {[%clk 0:01:24]}  Bf6 {[%clk 0:01:43]} 27. Qc7 {[%clk 0:01:22]}  Qb5 {[%clk 0:01:39]} 28. e5 {[%clk 0:01:10]}  Bxe5 {[%clk 0:01:37]} 29. Qb6 {[%clk 0:01:10]}  Qxd3 {[%clk 0:01:03]} 30. Rxe6 {[%clk 0:00:55]}  Rab8 {[%clk 0:01:03]} 31. Qa6 {[%clk 0:00:54]}  Rb1+ {[%clk 0:00:44]} 32. Rxb1 {[%clk 0:00:49]}  Qxb1+ {[%clk 0:00:44]} 33. Bf1 {[%clk 0:00:48]}  Bxg3 {[%clk 0:00:35]} 34. Re1 {[%clk 0:00:41]}  Qb2 {[%clk 0:00:21]} 35. hxg3 {[%clk 0:00:41]}  Qxd2 {[%clk 0:00:22]} 36. Rb1 {[%clk 0:00:36]}  Re8 {[%clk 0:00:18]} 37. Qxh6 {[%clk 0:00:35]}  Qxa5 {[%clk 0:00:16]} 38. Rb5 {[%clk 0:00:35]} 1-0


[Site "https://www.chess.com"]

[Event "Titled Tuesday Blitz April 4 Early 2023"]
[White "Liu, Casper"]
[Black "Oleksiyenko, Mykhaylo"]
[WhiteFideId "1454153"]
[BlackFideId "4152417"]
[WhiteElo "2221"]
[BlackElo "2551"]
[Result "0-1"]
[Round "01"]
[TimeControl "180+2"]
[Date "2023.04.04"]
[WhiteClock "0:00:50"]
[BlackClock "0:00:15"]

1. e4 {[%clk 0:02:51]}  c5 {[%clk 0:02:59]} 2. Nf3 {[%clk 0:02:51]}  Nc6 {[%clk 0:02:59]} 3. d4 {[%clk 0:02:50]}  cxd4 {[%clk 0:02:59]} 4. Nxd4 {[%clk 0:02:51]}  e5 {[%clk 0:03:00]} 5. Nxc6 {[%clk 0:02:50]}  bxc6 {[%clk 0:02:59]} 6. Nc3 {[%clk 0:02:50]}  Nf6 {[%clk 0:02:58]} 7. Be3 {[%clk 0:02:49]}  Bb4 {[%clk 0:02:52]} 8. f3 {[%clk 0:02:14]}  d5 {[%clk 0:02:38]} 9. exd5 {[%clk 0:02:15]}  cxd5 {[%clk 0:02:38]} 10. Bb5+ {[%clk 0:02:12]}  Bd7 {[%clk 0:02:38]} 11. Bxd7+ {[%clk 0:02:12]}  Qxd7 {[%clk 0:02:38]} 12. a3 {[%clk 0:02:11]}  Bxc3+ {[%clk 0:02:18]} 13. bxc3 {[%clk 0:02:12]}  O-O {[%clk 0:02:17]} 14. O-O {[%clk 0:02:12]}  Rfc8 {[%clk 0:02:15]} 15. Qd2 {[%clk 0:02:11]}  h6 {[%clk 0:02:08]} 16. Rfb1 {[%clk 0:02:10]}  Rc4 {[%clk 0:02:06]} 17. Rb3 {[%clk 0:02:10]}  Rac8 {[%clk 0:02:06]} 18. Rab1 {[%clk 0:02:10]}  d4 {[%clk 0:01:29]} 19. Bxh6 {[%clk 0:01:59]}  gxh6 {[%clk 0:01:26]} 20. Qxh6 {[%clk 0:02:00]}  Nh7 {[%clk 0:01:20]} 21. Rb7 {[%clk 0:01:57]}  Qc6 {[%clk 0:01:14]} 22. Qh5 {[%clk 0:01:51]}  Qg6 {[%clk 0:00:49]} 23. Qxe5 {[%clk 0:01:48]}  Rxc3 {[%clk 0:00:42]} 24. Rb8 {[%clk 0:01:44]}  Rxc2 {[%clk 0:00:35]} 25. Rxc8+ {[%clk 0:01:25]}  Rxc8 {[%clk 0:00:36]} 26. Rd1 {[%clk 0:01:25]}  Rc2 {[%clk 0:00:33]} 27. g3 {[%clk 0:01:25]}  d3 {[%clk 0:00:29]} 28. Qe8+ {[%clk 0:01:22]}  Nf8 {[%clk 0:00:28]} 29. Qd8 {[%clk 0:01:22]}  Qh5 {[%clk 0:00:25]} 30. h3 {[%clk 0:00:51]}  Qxf3 {[%clk 0:00:17]} 31. Qg5+ {[%clk 0:00:51]}  Ng6 {[%clk 0:00:17]} 32. Rd2 {[%clk 0:00:51]}  Rxd2 {[%clk 0:00:17]} 33. Qxd2 {[%clk 0:00:52]}  Qxg3+ {[%clk 0:00:15]} 34. Kh1 {[%clk 0:00:50]}  Qxh3+ {[%clk 0:00:15]} 35. Kg1 {[%clk 0:00:51]}  Qg3+ {[%clk 0:00:15]} 36. Kh1 {[%clk 0:00:51]}  Nf4 {[%clk 0:00:15]} 37. a4 {[%clk 0:00:47]}  Qg2+ {[%clk 0:00:14]} 38. Qxg2+ {[%clk 0:00:47]}  Nxg2 {[%clk 0:00:15]} 39. Kxg2 {[%clk 0:00:48]}  d2 {[%clk 0:00:15]} 40. a5 {[%clk 0:00:48]}  d1=Q {[%clk 0:00:15]} 41. a6 {[%clk 0:00:49]}  Qe2+ {[%clk 0:00:15]} 42. Kg3 {[%clk 0:00:50]}  Qe4 {[%clk 0:00:15]} 0-1


[Site "https://www.chess.com"]